Cogmind - Beta 13 @@@ ROGUE MODE // 2024.04.21 @ 21:15:24 Player: lucky255 Result: Destroyed by Y-45 Defender with Beam Rifle Performance ------------- Evolutions (2) 1000 Regions Visited (3) 600 Robots Destroyed (11) 55 Value Destroyed (397) 397 Prototype IDs (4) 80 Alien Tech Used (0) 0 Bonus (0) 0 TOTAL SCORE: 2132 Bonus ------- None Cogmind --------- Core Integrity 0/550 Matter 40/300 Energy 99/100 System Corruption 1% Temperature Cool (9) Movement Core (50) Location -8/Materials Parts ------- > --- POWER (1) -------- (None) > --- PROPULSION (4) --- (None) > --- UTILITY (2) ------ Visual Processing Unit > --- WEAPON (4) ------- (None) > --- INVENTORY (5) ---- Ion Engine Weapon Cycler Flak Gun Flak Gun Mini Grenade Launcher Peak State ------------ > --- POWER ------------ Light Ion Engine > --- PROPULSION ------- Improved Treads Armored Treads Aluminum Leg Aluminum Leg > --- UTILITY ---------- Visual Processing Unit Medium Armor Plating > --- WEAPON ----------- Autogun Mini Grenade Launcher Mini Grenade Launcher Mini Grenade Launcher > --- INVENTORY -------- Ion Engine Autogun Grenade Launcher [Rating: 20] Favorites ----------- Power Light Ion Engine Engine Light Ion Engine Propulsion Aluminum Leg Treads Improved Treads Leg Aluminum Leg Utility Heat Sink Device Heat Sink Processor Visual Processing Unit Protection Medium Armor Plating Weapon Grenade Launcher Energy Gun Small Laser Ballistic Gun Light Assault Rifle Launcher Grenade Launcher Build | -11 -10 -9 -8 ------- Run | Yrd Mat Mat Mat Slots Evolved 4 | . . 2 2 Power . | . . . . Propulsion 2 | . . 2 . Utility . | . . . . Weapon 2 | . . . 2 Parts Attached 24 | 5 4 9 6 Power 1 | 1 . . . Engine 1 | 1 . . . Core . | . . . . Reactor . | . . . . Propulsion 5 | 2 . 2 1 Treads 2 | . . 1 1 Leg 3 | 2 . 1 . Wheel . | . . . . Hover . | . . . . Flight . | . . . . Utility 5 | . 2 3 . Device 2 | . 2 . . Storage . | . . . . Processor 1 | . . 1 . Hackware . | . . . . Protection 2 | . . 2 . Artifact . | . . . . Weapon 13 | 2 2 4 5 Energy Gun 1 | 1 . . . Energy Cannon . | . . . . Ballistic Gun 6 | 1 1 2 2 Ballistic Cannon . | . . . . Launcher 6 | . 1 2 3 Special Weapon . | . . . . Impact Weapon . | . . . . Slashing Weapon . | . . . . Piercing Weapon . | . . . . Special Melee Weapon . | . . . . Unidentified Prototypes . | . . . . Parts Lost 11 | . . . 11 Power 1 | . . . 1 Propulsion 4 | . . . 4 Utility 1 | . . . 1 Weapon 5 | . . . 5 Highest Loss Streak 11 | . . . 11 To Critical Strikes . | . . . . Average Slot Usage (%) 84 | . 91 86 71 Engine 10 | . 14 11 5 Treads 7 | . . 9 11 Leg 21 | . 28 22 14 Device 10 | . 19 11 . Processor 3 | . . 2 9 Protection 5 | . . 8 5 Energy Gun 1 | . 6 . . Ballistic Gun 9 | . 14 10 3 Launcher 13 | . 7 11 23 Naked Turns . | . . . . Heaviest Build 23 | 6 9 23 16 Greatest Support 20 | 20 20 20 20 Greatest Overweight (x) 1 | . . 1 1 Average Overweight (x) . | . . . . Largest Inventory Capacity 5 | 5 5 5 5 Average Capacity 5 | 5 5 5 5 Most Carried 5 | 3 5 5 5 Average Carried 3 | 1 3 4 2 Final Capacity 5 | 5 5 5 5 Final Carried 5 | 3 5 5 5 Class Distribution -------------------- 85% | Mutant 11% | Bomber 3% | Skirmisher Dominant Class ---------------- Mutant | -10/Materials Mutant | -9/Materials Bomber | -8/Materials Resources | -11 -10 -9 -8 ----------- Run | Yrd Mat Mat Mat Matter Collected 406 | 253 24 52 77 Remotely . | . . . . Salvage Created 360 | 47 100 52 161 Parts 18 | 3 2 5 8 Haulers Intercepted . | . . . . Recyclers Shooed . | . . . . Parts Field Recycled . | . . . . Retrieved Matter . | . . . . Parts Self-Destructed . | . . . . Prevented . | . . . . Kills | -11 -10 -9 -8 ------- Run | Yrd Mat Mat Mat Combat Hostiles Destroyed 10 | 1 2 1 6 Guns 5 | 1 2 1 1 AOE 5 | . . . 5 Classes Destroyed 5 | 1 . 1 3 Watcher 1 | . . . 1 Swarmer 2 | . . . 2 Grunt 4 | 1 2 . 1 Sentry 3 | . . 1 2 Hunter 1 | . . . 1 Best Kill Streak 5 | 1 1 1 5 Combat Bots Only 5 | 1 1 1 5 Max Kills in Single Turn 2 | 1 1 1 2 Gunslinging . | . . . . Exploded 2 | . . . 2 Melee . | . . . . Uniques/NPCs Destroyed . | . . . . Combat | -11 -10 -9 -8 -------- Run | Yrd Mat Mat Mat Hostile Shots Fired 219 | 1 31 2 185 Missed 76 | 1 13 2 60 Damage Taken 1991 | . 227 . 1764 Core 599 | . 38 . 561 Absorbed by Shields . | . . . . Core Remaining (%) 94 | 100 84 100 . Volleys Fired 21 | 1 8 1 11 Largest 4 | 2 2 2 4 Hottest 120 | 60 60 46 120 Shots Fired 53 | 2 16 2 33 Gun 34 | 2 16 2 14 Cannon . | . . . . Launcher 19 | . . . 19 Special . | . . . . Kinetic 25 | 1 8 2 14 Thermal 9 | 1 8 . . Explosive 19 | . . . 19 Electromagnetic . | . . . . Robot Hit Streak 9 | 2 9 3 6 Robot Miss Streak 3 | . 2 . 3 Penetration Max . | . . . . Secondary Targets . | . . . . Shots Hit Robots 32 | 2 11 2 17 Core Hits 29 | 2 6 2 19 Critical Kills . | . . . . Critical Parts Destroyed . | . . . . Critical Strikes . | . . . . Melee Attacks . | . . . . Impact . | . . . . Slashing . | . . . . Piercing . | . . . . Sneak Attacks . | . . . . Combat Hostiles . | . . . . Follow-up Attacks . | . . . . Damage Inflicted 1181 | 29 130 29 993 Guns 361 | 27 127 29 178 Cannons . | . . . . Explosions 815 | . . . 815 Melee . | . . . . Ramming 5 | 2 3 . . Kinetic 283 | 15 61 29 178 Thermal 78 | 12 66 . . Explosive 815 | . . . 815 Electromagnetic . | . . . . Impact . | . . . . Slashing . | . . . . Piercing . | . . . . Highest Corruption 1 | . . . 1 Average Corruption 1 | . . . 1 Corruption Purged . | . . . . Corruption Blocked . | . . . . Effects 2 | . . . 2 Message Errors 1 | . . . 1 Misfires 1 | . . . 1 Overload Shots . | . . . . Overflow Damage . | . . . . Projectiles . | . . . . Explosions . | . . . . Melee . | . . . . Knockbacks . | . . . . Impact . | . . . . Kinetic . | . . . . Secondary . | . . . . Self-Inflicted Damage 121 | . . . 121 Shots 6 | . . . 6 Rammed . | . . . . Targets Rammed 2 | 1 1 . . Kicked 2 | 1 1 . . Crushed . | . . . . Highest Temperature 60 | . 51 12 60 Average Temperature 23 | . 28 9 21 Received Heat Transfer 591 | . 123 . 468 Siege Activations . | . . . . Robots Corrupted . | . . . . Combat Hostiles . | . . . . Parts Fried . | . . . . Impact Corruptions . | . . . . Robots Melted . | . . . . Combat Hostiles . | . . . . Parts Melted 1 | . 1 . . Heat Transferred 175 | 25 150 . . Parts Sabotaged . | . . . . Parts Stolen . | . . . . Parts Stripped . | . . . . Power Chain Reactions . | . . . . Alert | -11 -10 -9 -8 ------- Run | Yrd Mat Mat Mat Peak Influence 277 | 20 71 94 277 Initial 39 | . 13 29 39 Average 70 | 3 54 60 142 Maximum Alert Level 1 | . . . 1 Low Security (%) 92 | 100 100 100 63 Level 1 7 | . . . 36 Level 2 . | . . . . Level 3 . | . . . . Level 4 . | . . . . Level 5 . | . . . . High Security . | . . . . Max Security . | . . . . Squads Dispatched 4 | . 2 . 2 Investigation 2 | . 1 . 1 Extermination . | . . . . Reinforcement 2 | . 1 . 1 Assault . | . . . . Garrison . | . . . . Intercept . | . . . . Searches Triggered . | . . . . Construction Impeded 1 | . . . 1 Haulers Reinforced . | . . . . Active Scanning Responses . | . . . . Cargo Convoy Interrupts . | . . . . Stealth | -11 -10 -9 -8 --------- Run | Yrd Mat Mat Mat Distress Signals 3 | . 1 . 2 Communications Jammed . | . . . . Distress Signals . | . . . . Times Spotted 28 | 1 9 3 15 Peak Tracking Total 12 | . 4 2 12 Tactical Retreats . | . . . . Traps | -11 -10 -9 -8 ------- Run | Yrd Mat Mat Mat Traps Triggered . | . . . . Indirectly . | . . . . Trap Hack Attempts . | . . . . Triggered . | . . . . Disarmed . | . . . . Reprogrammed . | . . . . Reused . | . . . . Traps Extracted . | . . . . Installed . | . . . . Triggered . | . . . . Machines | -11 -10 -9 -8 ---------- Run | Yrd Mat Mat Mat Machines Disabled . | . . . . Max in Single Turn . | . . . . Machines Repaired . | . . . . Machines Dismantled . | . . . . Machines Sabotaged . | . . . . Overloaded Fab Kills . | . . . . Hacking | -11 -10 -9 -8 --------- Run | Yrd Mat Mat Mat Machines Accessed 7 | . 3 3 1 Terminals 5 | . 3 1 1 Fabricators . | . . . . Repair Stations . | . . . . Recycling Units 1 | . . 1 . Scanalyzers 1 | . . 1 . Garrison Access . | . . . . Total Hacks 23 | . 7 10 6 Successful 16 | . 6 7 3 Failed 7 | . 1 3 3 Catastrophic . | . . . . Database Lockouts . | . . . . Manual . | . . . . Terminals 16 | . 7 3 6 Fabricators . | . . . . Repair Stations . | . . . . Recycling Units 3 | . . 3 . Scanalyzers 4 | . . 4 . Garrison Access . | . . . . Terminal Hacks 12 | . 6 3 3 Record 7 | . 3 2 2 Robot Analysis 1 | . . . 1 Prototype ID Bank 2 | . 1 1 . Dispatch Records 1 | . 1 . . Recall Investigation 1 | . 1 . . Fabricator Hacks . | . . . . Repair Station Hacks . | . . . . Recycling Unit Hacks 2 | . . 2 . Report Inventory 1 | . . 1 . Retrieve Components 1 | . . 1 . Scanalyzer 2 | . . 2 . Insert Component 1 | . . 1 . Analyze 1 | . . 1 . Garrison Access Hacks . | . . . . Unauthorized Hacks . | . . . . Terminals . | . . . . Fabricators . | . . . . Repair Stations . | . . . . Recycling Units . | . . . . Scanalyzers . | . . . . Garrison Access . | . . . . Data Cores Recovered . | . . . . Used . | . . . . Hacking Detections 6 | . 2 3 1 Full Trace Events 3 | . 2 . 1 Feedback Events 1 | . . . 1 Corruption 1 | . . . 1 Feedback Blocked . | . . . . Robot Schematics Acquired . | . . . . Robots Built . | . . . . Authchips . | . . . . Time . | . . . . Total Robot Build Rating . | . . . . Part Schematics Acquired 1 | . . 1 . Parts Built . | . . . . Authchips . | . . . . Time . | . . . . Total Part Build Rating . | . . . . Parts Repaired . | . . . . Time . | . . . . Parts Recycled . | . . . . Recycled Matter . | . . . . Retrieved Matter . | . . . . Retrieved Components 7 | . . 7 . Parts Scanalyzed 1 | . . 1 . Part Schematics Acquired 1 | . . 1 . Parts Damaged . | . . . . Bothacking | -11 -10 -9 -8 ------------ Run | Yrd Mat Mat Mat Used RIF Installer . | . . . . Robots Hacked . | . . . . Non-combat . | . . . . Combat . | . . . . Robot Hacks Applied . | . . . . Relay Couplers Released . | . . . . Fabnet Peak Effective % . | . . . . Robots Rewired . | . . . . Allies Hacked . | . . . . Hacks Repelled . | . . . . Allies | -11 -10 -9 -8 -------- Run | Yrd Mat Mat Mat Total Allies . | . . . . Largest Group . | . . . . Highest-Rated Group . | . . . . Highest-Rated Ally . | . . . . Total Orders . | . . . . Ally Attacks . | . . . . Total Damage . | . . . . Kills . | . . . . Allies Corrupted . | . . . . Allies Melted . | . . . . Intel | -11 -10 -9 -8 ------- Run | Yrd Mat Mat Mat Robot Analysis Total 1 | . . . 1 Derelict Logs Recovered . | . . . . Drone Launches . | . . . . Drone Recoveries . | . . . . Exploration | -11 -10 -9 -8 ------------- Run | Yrd Mat Mat Mat Turns Passed 838 | 81 214 363 180 Spaces Moved 576 | 69 146 237 124 Core 68 | 26 . . 42 Treads . | . . . . Legs 508 | 43 146 237 82 Wheels . | . . . . Hover . | . . . . Flight . | . . . . Fastest Speed 50 | 50 120 120 50 Average Speed 116 | 93 120 131 96 Slowest Speed 190 | 120 120 190 120 Overloaded Moves . | . . . . Propulsion Burnouts . | . . . . Robots Hopped . | . . . . Cave-ins Triggered . | . . . . Exploration Rate (%) 15 | 5 26 19 13 Regions Visited 3 Branch Regions . Pre-discovered Areas . | . . . . Known Exits Taken . | . . . . Unknown Exits Taken 3 | 1 1 1 . Scrap Searched . | . . . . Spaces Dug 36 | . . . 36 Terrain Destroyed 164 | . . . 164 Melee . | . . . . Projectile . | . . . . AOE 164 | . . . 164 Terrain Rammed . | . . . . Walls Destroyed . | . . . . Machines Disabled . | . . . . Actions | -11 -10 -9 -8 --------- Run | Yrd Mat Mat Mat Total 699 | 83 167 288 161 Wait 41 | . 5 20 16 Move 573 | 68 145 236 124 Hop . | . . . . Pick Up 27 | 8 4 11 4 Fast Attach . | . . . . Attach 13 | 5 2 2 4 Detach 1 | . . 1 . Swap 11 | . 2 7 2 Drop 10 | . . 10 . Fire 21 | 1 8 1 11 Melee . | . . . . Ram . | . . . . Kick 2 | 1 1 . . Crush . | . . . . Escape Stasis . | . . . . Rewire . | . . . . Trap . | . . . . Miscellaneous . | . . . . Route ------- -11/Scrapyard -10/Materials -9/Materials -8/Materials History --------- Turn | Location | Event 2 | -11/Scrapyard | Met Revision 17 63 | -11/Scrapyard | Discovered new exit (range 8) 82 | -11/Scrapyard | Entered Materials 276 | -10/Materials | Discovered new exit (range 16) 296 | -10/Materials | Entered another Materials area 296 | -9/Materials | Evolved 2 slots: Propulsion x2 317 | -9/Materials | Build established: Mutant 606 | -9/Materials | Discovered new exit (range 13) 659 | -9/Materials | Entered another Materials area 659 | -8/Materials | Evolved 2 slots: Weapon x2 811 | -8/Materials | Core integrity fell below 50% 819 | -8/Materials | Core integrity fell below 20% 838 | -8/Materials | Lost 11 parts (1p4n1u5w) 839 | -8/Materials | Destroyed by Y-45 Defender with Beam Rifle Last Messages --------------- 00815_ U-05 Engineer lays Concrete. 00815_ U-05 Engineer builds a Door. 00816_ U-05 Engineer builds a Wall. 00817_ Slug penetrates Wall. 00817_ R-06 Scavenger collects Flight Unit. 00817_ U-05 Engineer lays Concrete. 00819_ HX/R WLOHSTIWV9AVU7G#KD,MLPBJ%X<&E LHG 00819_ U-05 Engineer builds a Wall. 00819_ U-05 Engineer lays Concrete. 00823_ K-01 Serf collects debris. 00823_ U-05 Engineer builds a Wall. 00823_ U-05 Engineer lays Concrete. 00824_ U-05 Engineer builds a Wall. 00828_ R-06 Scavenger collects Wheel. 00829_ Acquired Flak Gun. 00829_ K-01 Serf collects debris. 00831_ Acquired Flak Gun. 00831_ R-06 Scavenger collects Seismic Detector. 00832_ Acquired Weapon Cycler. 00836_ Penetrated by Slug. Map ----- +----------------------------------------------------+ | ????????????????##### #???# #????????????????? | | ????????######### # #???# #????????????????? | | ????????# ! ] ==!# #??## ##????????#??????? | | ????????# *# #### ##???## ###???#? | | ????????# " " " %%# ### ### #? | | ????????# " """" % + T # # ## | | ????????# %=" "" # % # # * ## | | ????????# = ## ### % % | | ????????# "T" ## # ## ####### [ # # | | ????????############## #?##### ## | | ?????????????????????# #?????? # # ## | | ????????????????????## ##???? #?== # # | | ????????????????##### #?? #?? # # | | ????????????????#!! # #?? # # | | ????????????????#!! + ??"Y" | | ????????????????#[ # ?????????""" ## | | ????????????????#[ # ???????? ! #? | | ????????????????#! ## ##? ???????#+##########? | | ????????????????#!! ## #?? ??????????????????? | | ????????????????###### #???##??????????????????? | | ?????????????????????# #???????????????????????? | | ?????????????????????# #???????????????????????? | | ?????????????????????# #???????????????????????? | | ?????????????????????# ############# #?????????? | | ?????????????????????# #?????????? | | ?????????????????????# @ +?????????? | | ?????????????????????# #?????????? | | ?????????????????????####+########## k#?????????? | | ?????????????????????????????????????????????????? | | ?????????????????????????????????????????????????? | | ?????????????????????????????????????????????????? | | ?????????????????????????????????????????????????? | | ?????????????????????????????????????????????????? | | ?????????????????????????????????????????????????? | | ?????????????????????????????????????????????????? | | ?????????????????????????????????????????????????? | | ?????????????????????????????????????????????????? | | ?????????????????????????????????????????????????? | | ?????????????????????????????????????????????????? | | ?????????????????????????????????????????????????? | | ?????????????????????????????????????????????????? | | ?????????????????????????????????????????????????? | | ?????????????????????????????????????????????????? | | ?????????????????????????????????????????????????? | | ?????????????????????????????????????????????????? | | ?????????????????????????????????????????????????? | | ?????????????????????????????????????????????????? | | ?????????????????????????????????????????????????? | | ?????????????????????????????????????????????????? | | ?????????????????????????????????????????????????? | +----------------------------------------------------+ Best States ------------- Heat Dissipation 48 Energy Generation 10 Energy Capacity 125 Matter Stores 300 Matter Capacity 300 Sight Range 18 Terrain Scan Density 10 Armor Coverage 450 Evasion (%) 55 Item Schematics ----------------- Assault Rifle | -9/Materials | Scanalyzed Robot Schematics ------------------ None Fabricated ------------ Nothing Alien Tech Used ----------------- None Achievements -------------- GoHome() Maybe Next Time I'll Detach My Launcher One Hack Too Far Oops Uninvited Guest Challenges ------------ None Game ------ Seed ZioniteCouplerPlating Manual? 0 Play Time 00:27:50 Cumulative 1.0 hours Start 2024.04.21 @ 20:42:18 End 2024.04.21 @ 21:15:24 Sessions 1 Manual Loads 0 Difficulty Rogue Special Mode None Game No. 2 Rogue 2 Adventurer 0 Explorer 0 Win Type - Total 0 Types 0/0/0/0/0/0/0/0/0 Lore% 1 Gallery% 1 Achievement% 2 Wizard Run 0 Options --------- Layout 1 ASCII 0 Keyboard 1 Movement Numpad Keybinds 0 Fullscreen 1 Font 24/Cog Map View 50x35 Zoom Use 0% Tactical HUD 1 Map Filters NONE Filters NONE Steam 1 RUN: a7eb899a-a9a4-41da-ac1e-e827f284b630